bitfinex-derivatives/quotes_ETHF0:USTF0_20210111
["timestamp","ask_amount","ask_price","bid_price","bid_amount"]
[1610398300767,5.58559,1019.9,1017.2,1.9928]
[1610398301167,1.576,1019.9,1017.2,1.9928]
[1610398301567,1.576,1019.9,1016.9,77.7868]
[1610398301568,4.00959,1018.2,1017.4,4.00959]
[1610398301768,6.07889,1018.2,1017.4,4.00959]
[1610398302168,2.0693,1018.2,1016.9,75.8467]
[1610398303568,2.0693,1018.2,1018.1,4.00959]
[1610398303768,4.00959,1018.8,1018.1,4.00959]
[1610398304169,4.00959,1018.8,1018.0,2.0463]
[1610398304768,5.94859,1018.8,1017.4,1.944]
[1610398304970,5.94859,1018.8,1016.3,1.9638]
[1610398305169,5.94859,1018.8,1016.4,79.1181]
[1610398305369,5.94859,1018.8,1016.4,80.7925]
[1610398305569,4.00959,1017.3,1016.9,4.00959]
[1610398305769,5.76639,1017.3,1016.4,80.7925]
[1610398305971,5.76639,1017.3,1016.4,1.6744]
[1610398306770,5.76639,1017.3,1015.5,65.6384]
[1610398306972,5.76639,1017.3,1015.3,1.9939]
[1610398307171,5.76639,1017.3,1015.1,0.24880285]
[1610398307371,5.76639,1017.3,1015.0,0.24913229]
[1610398307572,5.76639,1017.3,1014.8,0.24950762]
[1610398307573,1.7568,1017.3,1014.8,0.24950762]
[1610398307974,1.7568,1017.3,1016.0,4.00959]
[1610398308772,1.7568,1017.3,1015.7,1.6463]
[1610398309273,9.62884957,1017.3,1015.7,1.6463]
[1610398309675,1.7568,1017.3,1015.7,1.6463]
[1610398309975,4.00959,1015.8,1015.7,1.6463]
[1610398311178,1.956,1016.4,1015.4,2.2068]
[1610398311978,4.00959,1015.5,1015.4,2.2068]
[1610398312177,4.00959,1015.5,1013.9,4.26146155]
[1610398312178,4.00959,1015.5,1014.1,80.5132]
[1610398312579,4.00959,1015.5,1013.7,0.50364482]
[1610398312580,4.00959,1015.5,1013.7,0.2519957]
[1610398312778,4.00959,1015.5,1013.5,0.25229839]
[1610398313178,5.96479,1015.5,1013.5,0.25229839]
[1610398313379,5.96479,1015.5,1013.4,0.25235539]
[1610398313780,4.00959,1015.5,1013.5,0.25228564]
[1610398313979,4.00959,1014.6,1014.1,4.00959]
[1610398314179,4.00959,1014.6,1013.5,2.32558564]
[1610398314780,4.00959,1014.6,1013.5,2.0733]
[1610398316180,2.2495,1014.6,1013.5,2.0733]
[1610398316780,4.00959,1013.6,1013.5,2.0733]
[1610398317981,4.00959,1013.6,1013.5,1.8333]
[1610398318181,1.5638,1014.5,1013.5,1.8333]
[1610398318783,4.00959,1013.6,1013.5,1.8333]
[1610398319183,4.00959,1013.6,1012.5,82.61587764]
[1610398319384,4.00959,1013.6,1012.5,82.3624]
[1610398319986,1.5421,1014.8,1012.5,82.3624]
[1610398320185,1.5421,1014.8,1012.5,2.1356]
[1610398320586,2.4718,1015.2,1012.6,0.25307971]
[1610398320785,4.00959,1013.9,1012.6,0.25307971]
[1610398320985,4.00959,1013.9,1012.7,0.25291528]
[1610398321185,4.00959,1013.9,1012.5,75.48382274]
[1610398321984,4.00959,1013.9,1012.6,0.25317723]
[1610398322385,4.00959,1013.9,1012.8,0.25294275]
[1610398322585,4.00959,1013.9,1012.5,75.2305]
[1610398322784,4.00959,1012.6,1012.5,2.1356]
[1610398322985,1.9755,1013.6,1012.5,2.1356]
[1610398323185,1.9755,1013.6,1012.8,1.7684]
[1610398323385,1.9504,1014.2,1012.8,1.7684]
[1610398324787,4.00959,1013.1,1012.9,4.00959]
[1610398325188,2.405,1013.9,1012.8,1.7684]
[1610398325387,2.1675,1014.2,1012.8,1.7684]
[1610398326488,70.398,1014.4,1012.8,1.7684]
[1610398326688,4.00959,1013.1,1012.8,1.7684]
[1610398327687,1.9492,1014.3,1012.8,1.7684]
[1610398327888,2.1343,1014.5,1012.8,3.7166]
[1610398328088,1.8913,1015.2,1012.8,65.692]
[1610398328390,7.89265983,1014.6,1012.8,65.692]
[1610398328788,4.00959,1014.7,1014.3,4.00959]
[1610398328988,4.00959,1014.7,1014.3,5.72219]
[1610398329193,4.00959,1014.7,1014.3,1.7126]
[1610398330391,1.9536,1015.5,1014.3,1.7126]
[1610398330590,1.9865,1016.3,1014.3,1.7126]
[1610398330791,4.00959,1016.1,1016.0,4.00959]
[1610398331190,4.00959,1016.1,1015.0,77.9792]
[1610398332193,1.9629,1017.2,1015.0,77.9792]
[1610398332393,2.1266,1017.4,1015.0,79.8617]
[1610398332793,4.00959,1016.6,1015.0,79.8617]
[1610398334596,6.00969,1016.6,1015.0,79.8617]
[1610398334797,4.00959,1015.1,1015.0,83.87129]
[1610398334997,4.00959,1015.1,1015.0,5.89209]
[1610398335398,4.00959,1015.1,1014.3,1.7126]
[1610398335599,4.00959,1015.1,1014.1,57.3752]
[1610398336199,3.9559,1016.6,1014.1,59.3561]
[1610398336398,2.0001,1016.6,1014.1,61.5641]
[1610398336802,4.00959,1015.8,1014.1,61.5641]
[1610398338005,4.00959,1015.8,1014.1,59.5832]
[1610398338805,4.00959,1015.8,1015.1,4.00959]
[1610398339006,4.00959,1015.8,1015.1,6.34949]
[1610398339205,4.00959,1015.8,1015.1,2.3399]
[1610398340105,4.00959,1015.8,1014.8,1.5387]
[1610398340305,5.97459,1015.8,1014.8,1.5387]
[1610398340906,4.00959,1015.2,1014.9,4.00959]
[1610398341105,1.9545,1016.3,1014.9,6.00079]
[1610398341306,4.0001,1016.6,1014.9,6.00079]
[1610398341511,2.0553,1016.6,1014.8,1.5387]
[1610398342508,11.0553,1016.6,1014.8,1.5387]
[1610398342708,2.0553,1016.6,1014.1,59.5832]
[1610398342909,4.00959,1014.9,1014.1,2.208]
[1610398343109,6.38429,1014.9,1013.0,67.7657903]
[1610398343310,6.38429,1014.9,1013.0,63.5082]
[1610398344709,2.3747,1014.9,1013.0,63.5082]
[1610398345309,4.00959,1013.9,1013.0,63.5082]
[1610398347311,4.00959,1013.1,1013.0,63.5082]
[1610398347513,4.00959,1013.1,1012.8,1.7684]
[1610398347709,4.00959,1013.1,1012.5,2.1356]
[1610398347909,2.455,1013.9,1012.2,1.959]
[1610398348110,2.455,1013.9,1012.2,1.6215]
[1610398349410,4.00959,1012.7,1012.2,1.6215]
[1610398350211,2.455,1013.9,1012.2,1.6215]
[1610398350512,4.34,1014.2,1012.2,1.6215]
[1610398350711,7.89265983,1014.6,1012.2,1.6215]
[1610398350913,81.9407,1014.7,1012.2,1.6215]
[1610398351113,81.9407,1014.7,1012.2,1.87007384]
[1610398351312,4.00959,1013.9,1013.4,4.00959]
[1610398351513,4.00959,1013.9,1012.2,1.87007384]
[1610398351713,4.00959,1013.9,1012.3,0.24841442]
[1610398352213,4.00959,1013.9,1012.2,1.87001216]
[1610398353013,4.00959,1013.9,1012.4,0.24812176]
[1610398353213,4.00959,1013.9,1012.4,2.22782176]
[1610398353415,4.00959,1013.9,1013.1,4.00959]
[1610398353612,4.00959,1013.9,1013.1,7.58849]
[1610398353813,1.959,1014.3,1013.1,7.58849]
[1610398354014,2.2465,1014.4,1013.1,7.58849]
[1610398354214,27.65776203,1018.4,1013.1,16.40339]
[1610398354414,5.9133,1017.4,1013.8,76.8978]
[1610398354614,5.9133,1017.4,1013.8,78.6309]
[1610398354818,7.88565796,1015.5,1013.8,78.6309]
[1610398355417,2.4629,1015.6,1015.2,4.00959]
[1610398355617,4.4244,1015.6,1015.2,4.00959]
[1610398355816,4.00959,1015.9,1015.2,4.00959]
[1610398357418,4.00959,1015.9,1015.5,4.00959]
[1610398357819,4.00959,1015.9,1015.0,1.6685]
[1610398358018,4.00959,1015.9,1015.0,3.6412]
[1610398358317,4.00959,1015.9,1015.0,1.6685]
[1610398359418,4.00959,1015.9,1015.8,4.00959]
[1610398359618,4.00959,1015.9,1015.0,1.6685]
[1610398359818,4.00959,1015.9,1015.1,82.2378]
[1610398361220,4.00959,1015.9,1015.1,84.1882]
[1610398361421,1.7171,1016.1,1015.1,82.2378]
[1610398362522,1.7171,1016.1,1015.1,84.1997]
[1610398362722,1.7171,1016.1,1015.1,82.2378]
[1610398363322,4.00959,1015.4,1015.1,82.2378]
[1610398363523,4.00959,1015.4,1015.0,1.6685]
[1610398363924,4.00959,1015.4,1015.0,1.9798]
[1610398365127,4.00959,1015.4,1014.3,82.0348]
[1610398365326,4.00959,1014.6,1013.8,1.7331]
[1610398365527,4.00959,1014.6,1013.5,74.51511298]
[1610398365726,4.00959,1014.6,1013.5,74.2701]
[1610398366127,4.00959,1014.6,1013.1,1.84353015]
[1610398366326,4.00959,1014.6,1013.1,1.5983]
[1610398366529,6.22829,1014.6,1012.9,0.2452773]
[1610398366726,6.22829,1014.6,1012.8,0.24539944]
[1610398367129,6.22829,1014.6,1012.5,66.114]
[1610398367327,4.00959,1013.1,1012.6,4.00959]
[1610398367532,2.3429,1013.9,1012.6,4.00959]
[1610398367727,2.3429,1013.9,1012.6,5.68969]
[1610398369230,2.3429,1013.9,1012.6,7.63919]
[1610398369430,2.3429,1013.9,1013.1,4.00959]
[1610398369630,2.3429,1013.9,1013.1,2.0023]
[1610398371431,2.3429,1013.9,1013.2,4.00959]
[1610398372432,2.3429,1013.9,1013.2,6.21289]
[1610398372632,4.1728,1014.6,1013.2,8.21319]
[1610398372833,2.2187,1014.6,1013.2,8.21319]
[1610398373032,1.825,1015.0,1013.2,8.21319]
[1610398373236,1.9971,1015.3,1013.2,8.21319]
[1610398373434,1.9971,1015.3,1014.1,4.00959]
[1610398373835,1.9971,1015.3,1013.4,82.7299]
[1610398375036,6.2126,1016.0,1013.4,82.7299]
[1610398375437,4.00959,1014.9,1014.5,4.00959]
[1610398376437,4.00959,1014.9,1014.0,61.3019]
[1610398377438,4.00959,1014.6,1014.0,61.3019]
[1610398378539,2.1674,1015.0,1014.0,61.3019]
[1610398378941,2.031,1015.0,1014.0,61.3019]
[1610398379439,6.04059,1015.0,1014.9,4.00959]
[1610398380040,6.04059,1015.0,1014.5,1.9607]
[1610398380241,6.04059,1015.0,1014.2,75.8772]
[1610398380440,6.04059,1015.0,1013.9,1.6622]
[1610398380640,6.04059,1015.0,1013.3,67.3495]
[1610398381442,4.00959,1013.4,1013.2,6.21289]
[1610398381642,4.00959,1013.4,1013.2,4.00959]
[1610398381842,4.00959,1013.4,1012.7,0.24521458]
[1610398382042,4.00959,1013.4,1012.6,1.6801]
[1610398382241,4.00959,1013.4,1012.6,1.996]
[1610398383445,4.00959,1013.4,1013.1,4.00959]
[1610398384243,4.00959,1013.4,1012.7,2.3996]
[1610398385447,2.4659,1013.6,1012.7,2.3996]
[1610398385846,2.4659,1013.6,1012.4,67.7923]
[1610398386247,2.4659,1013.6,1012.4,69.7693]
[1610398386648,2.4845,1014.0,1012.4,69.7693]
[1610398386848,2.031,1015.0,1012.4,69.7693]
[1610398387050,7.88721286,1015.3,1012.4,69.7693]
[1610398387249,7.88721286,1015.3,1012.4,67.7923]
[1610398387449,4.00959,1013.6,1013.4,4.00959]
[1610398387649,5.97059,1013.6,1013.4,1.9573]
[1610398389052,5.97059,1013.6,1013.4,1.6605]
[1610398389252,5.97059,1013.6,1012.4,67.7923]
[1610398389452,4.00959,1012.7,1012.6,4.00959]
[1610398389653,4.00959,1012.7,1012.4,1.5708]
[1610398389853,4.00959,1012.7,1011.8,75.8456]
[1610398390252,2.3449,1013.0,1011.8,75.8456]
[1610398390453,2.3449,1013.0,1011.8,78.058]
[1610398391456,4.00959,1012.6,1012.3,4.00959]
[1610398391659,6.00339,1012.6,1012.3,1.9584]
[1610398391858,4.00959,1012.6,1011.8,78.058]
[1610398392958,5.96229,1012.6,1011.8,78.058]
[1610398393158,5.96229,1012.6,1011.8,80.0349]
[1610398393360,4.00959,1012.6,1011.8,2.2124]
[1610398393560,4.00959,1012.4,1011.9,4.00959]
[1610398393761,4.00959,1012.4,1011.8,2.2124]
[1610398394268,4.00959,1012.4,1011.8,4.1854]
[1610398395068,5.97459,1012.4,1011.8,4.1854]
[1610398395268,5.97459,1012.4,1011.8,2.2124]
[1610398395269,4.00959,1012.4,1011.8,2.2124]
[1610398395468,4.00959,1012.4,1011.1,4.00959]
[1610398395469,4.00959,1011.9,1011.1,4.00959]
[1610398395668,4.00959,1011.9,1010.6,0.24465441]
[1610398395669,5.79819,1011.9,1010.6,0.24465441]
[1610398396272,5.79819,1011.9,1010.7,0.24425482]
[1610398396273,1.7886,1011.9,1010.7,0.24425482]
[1610398396471,1.7886,1011.9,1010.9,0.24361574]
[1610398396874,1.7886,1011.9,1010.8,0.24359382]
[1610398397071,1.7886,1011.9,1010.7,2.65745124]
[1610398397472,1.7886,1011.9,1010.9,4.00959]
[1610398397473,4.00959,1011.1,1010.9,4.00959]
[1610398397677,1.7886,1011.9,1010.9,4.00959]
[1610398398271,1.7886,1011.9,1010.7,2.4138]
[1610398399274,3.7592,1011.9,1010.7,2.4138]
[1610398399478,4.00959,1010.8,1010.7,2.4138]
[1610398399673,5.56299,1010.8,1010.4,0.24440383]
[1610398399875,5.56299,1010.8,1009.8,0.2452672]
[1610398400076,1.5534,1010.8,1009.8,0.2452672]
[1610398400273,1.5534,1010.8,1009.6,0.24570433]
[1610398400973,1.5534,1010.8,1009.3,0.24633009]
[1610398401374,1.5534,1010.8,1009.2,0.24650489]
[1610398401573,4.00959,1009.6,1009.3,4.00959]
[1610398401973,2.2738,1010.3,1009.3,4.00959]
[1610398402975,2.2738,1010.3,1009.1,1.76539544]
[1610398403175,2.2738,1010.3,1009.1,1.5185]
[1610398403575,2.2738,1010.3,1009.2,4.00959]
[1610398404477,2.2738,1010.3,1009.1,1.5185]
[1610398405576,2.2738,1010.3,1009.7,4.00959]
[1610398405978,2.2738,1010.3,1009.1,1.5185]
[1610398406877,1.9832,1010.4,1009.1,1.5185]
[1610398407077,2.4548,1010.3,1009.1,1.5185]
[1610398407278,2.4548,1010.3,1009.0,0.24834033]
[1610398407478,4.00959,1010.1,1009.6,4.00959]
[1610398407677,2.4548,1010.3,1009.6,4.00959]
[1610398408078,1.5534,1010.8,1009.6,6.03189]
[1610398408278,1.9984,1012.5,1009.6,6.03189]
[1610398408478,1.9984,1012.5,1009.9,73.4016]
[1610398408678,1.9984,1012.5,1009.9,77.7199]
[1610398409078,1.7886,1011.9,1009.9,77.7199]
[1610398409280,55.9998,1013.3,1009.9,77.96635033]
[1610398409480,4.00959,1011.6,1011.2,4.00959]
[1610398410280,4.00959,1011.6,1010.0,0.24608916]
[1610398410681,4.00959,1011.6,1009.9,75.96965791]
[1610398411282,4.00959,1011.6,1009.9,75.7242]
[1610398411482,2.3546,1011.8,1010.9,4.00959]
[1610398411681,2.3546,1011.8,1010.9,1.998]
[1610398412684,2.451,1012.2,1010.9,1.998]
[1610398412885,55.9998,1013.3,1010.9,1.998]
[1610398413485,4.00959,1011.2,1011.1,4.00959]
[1610398414387,4.00959,1011.2,1010.9,1.998]
[1610398415592,4.00959,1011.0,1010.9,1.998]
[1610398415794,4.00959,1011.0,1009.9,2.3226]
[1610398415992,4.00959,1011.0,1009.8,0.24598121]
[1610398416193,4.00959,1011.0,1009.7,0.24635513]
[1610398416594,4.00959,1011.0,1009.6,2.0223]
[1610398416796,4.00959,1011.0,1009.4,0.24723014]
[1610398416996,4.00959,1011.0,1009.4,2.22933014]
[1610398417195,4.00959,1011.0,1009.4,0.24723014]
[1610398417596,2.332,1011.1,1010.2,4.00959]
[1610398418597,2.332,1011.1,1009.7,2.0361]
[1610398419498,4.00959,1009.8,1009.3,1.8094]
[1610398419697,4.00959,1009.8,1009.2,4.00959]
[1610398419897,4.00959,1009.8,1008.9,0.24764493]
[1610398420298,4.00959,1009.8,1008.8,2.23601921]
[1610398420497,2.2744,1010.0,1008.8,2.23601921]
[1610398420898,2.2744,1010.0,1008.9,0.24759828]
[1610398421099,1.9158,1010.3,1008.9,0.24759828]
[1610398421501,4.00959,1009.7,1009.3,4.00959]
[1610398421700,1.9158,1010.3,1009.3,4.00959]
[1610398421901,1.9158,1010.3,1009.3,5.75369]
[1610398422102,2.332,1011.1,1009.3,5.75369]
[1610398422300,76.0454,1011.4,1009.3,5.75369]
[1610398422500,2.371,1011.4,1009.5,0.24612656]
[1610398422701,64.972,1012.6,1009.5,2.20282656]
[1610398422901,64.972,1012.6,1009.7,0.24582889]
[1610398423102,64.972,1012.6,1009.7,4.01182889]
[1610398423501,4.00959,1011.4,1011.0,4.00959]
[1610398423701,6.21599,1011.4,1011.0,4.00959]
[1610398423902,6.21599,1011.4,1009.8,0.24578483]
[1610398424103,6.21599,1011.4,1009.7,4.01200056]
[1610398424506,6.21599,1011.4,1009.7,3.766]
[1610398425203,6.21599,1011.4,1009.7,4.01231465]
[1610398425603,2.2064,1011.4,1011.1,4.00959]
[1610398425803,2.2064,1011.4,1010.5,1.89]
[1610398427005,2.2064,1011.4,1010.3,1.9677]
[1610398427205,4.1853,1011.4,1010.3,1.9677]
[1610398427408,2.2064,1011.4,1010.3,1.9677]
[1610398427605,2.2064,1011.4,1011.0,4.00959]
[1610398427805,5.94919,1011.7,1011.0,4.00959]
[1610398428805,4.00959,1011.7,1011.0,4.00959]
[1610398429006,1.9761,1012.5,1011.0,4.00959]
[1610398429607,1.9761,1012.5,1012.0,4.00959]
[1610398430206,1.9761,1012.5,1011.2,2.3968]
[1610398430607,3.9689,1012.5,1011.2,2.3968]
[1610398431608,4.00959,1012.2,1011.9,4.00959]
[1610398432109,6.10939,1012.2,1011.9,4.00959]
[1610398433709,6.10939,1012.2,1012.1,4.00959]
[1610398433909,6.10939,1012.2,1011.2,2.3968]
[1610398434812,6.10939,1012.2,1011.1,1.9838]
[1610398435014,6.10939,1012.2,1010.8,1.6786]
[1610398435217,6.10939,1012.2,1010.5,2.0044]
[1610398435417,6.10939,1012.2,1010.3,64.8489]
[1610398435618,6.10939,1012.2,1012.1,4.00959]
[1610398436018,2.0998,1012.2,1012.1,4.00959]
[1610398437020,1.9928,1012.5,1012.1,4.00959]
[1610398437221,1.9709,1012.5,1012.1,4.00959]
[1610398437421,2.0036,1013.7,1012.1,4.00959]
[1610398437623,82.5186,1014.1,1012.9,4.00959]
[1610398438122,80.562,1014.1,1012.9,4.00959]
[1610398439727,4.00959,1013.2,1012.1,2.3604]
[1610398439928,6.42849,1013.2,1012.1,2.3604]
[1610398440130,6.42849,1013.2,1011.8,2.4336]
[1610398440329,6.42849,1013.2,1011.2,2.1037]
[1610398440930,6.42849,1013.2,1011.1,62.5139]
[1610398441631,2.4189,1013.2,1012.5,4.00959]
[1610398442431,2.4189,1013.2,1011.3,2.1794]
[1610398443634,4.00959,1012.1,1011.7,4.00959]
[1610398443832,2.4189,1013.2,1011.7,5.95729]
[1610398444034,1.9605,1012.2,1011.7,4.00959]
[1610398445034,1.9605,1012.2,1011.7,5.97919]
[1610398445733,1.9605,1012.2,1012.1,4.00959]
[1610398445935,1.9605,1012.2,1011.7,1.9696]
[1610398446135,1.9605,1012.2,1011.1,62.5139]
[1610398449036,12.4972,1013.1,1011.1,62.5139]
[1610398449237,1.5137,1012.2,1011.1,62.5139]
[1610398449736,1.9066,1012.2,1012.1,4.00959]
[1610398450736,4.00959,1012.8,1012.1,4.00959]
[1610398451137,6.16,1013.5,1012.1,4.00959]
[1610398451738,6.0482,1013.6,1011.8,64.4194]
[1610398451938,71.1183,1014.2,1011.8,64.4194]
[1610398452138,5.9369,1014.1,1011.8,94.4194]
[1610398452338,10.2756,1014.1,1011.8,94.4194]
[1610398452539,8.279,1014.1,1011.8,64.4194]
[1610398453140,2.3421,1014.1,1011.8,64.4194]
[1610398453539,4.2876,1014.1,1011.8,64.4194]
[1610398453738,4.00959,1013.3,1013.1,4.00959]
[1610398453938,4.00959,1013.3,1012.5,1.9654]
[1610398453939,5.95559,1013.3,1012.5,1.9654]
[1610398454139,5.95559,1013.3,1012.2,2.0017]
[1610398454339,5.95559,1013.3,1011.8,64.4194]
[1610398454539,4.00959,1013.3,1011.8,64.4194]
[1610398455540,5.98759,1013.3,1011.8,64.4194]
[1610398455743,4.00959,1012.5,1011.8,64.4194]
[1610398455947,5.95519,1012.5,1011.7,4.0442]
[1610398456147,5.95519,1012.5,1011.7,2.0735]
[1610398456349,7.46959,1012.5,1011.7,2.0735]
[1610398456546,7.46959,1012.5,1011.4,2.3089]
[1610398456748,7.46959,1012.5,1011.1,1.9769]
[1610398457750,4.00959,1011.3,1011.1,5.98649]
[1610398457949,4.00959,1011.3,1011.1,1.9769]
[1610398458353,4.00959,1011.3,1010.2,77.0439]
[1610398458952,4.00959,1011.3,1009.6,0.24322895]
[1610398459153,4.00959,1011.3,1009.4,75.4859]
[1610398459753,4.00959,1009.9,1009.8,4.00959]
[1610398459952,4.00959,1009.9,1009.8,6.01799]
[1610398460554,4.00959,1009.9,1009.8,4.00959]
[1610398460955,6.01869,1009.9,1009.8,4.00959]
[1610398461454,4.00959,1009.9,1009.8,4.00959]
[1610398461854,4.00959,1009.9,1009.8,1.9864]
[1610398462454,4.00959,1009.9,1009.0,71.4725]
[1610398462654,1.4963,1010.0,1009.0,30.0]
[1610398462854,81.3979,1011.3,1009.0,108.1637]
[1610398463054,81.3979,1011.3,1009.0,108.4081677]
[1610398463755,4.00959,1010.7,1010.4,4.00959]
[1610398463955,7.65449,1010.7,1010.4,5.97379]
[1610398464756,5.69509,1010.7,1009.6,79.8669]
[1610398465755,1.6855,1010.7,1010.0,4.00959]
[1610398466157,3.6621,1010.7,1010.0,4.00959]
[1610398466559,1.6855,1010.7,1010.0,4.00959]
[1610398467558,3.6726,1010.7,1010.0,4.00959]
[1610398467758,3.6726,1010.7,1010.6,4.00959]
[1610398467958,1.6855,1010.7,1010.0,2.1658]
[1610398468358,2.1894,1011.0,1010.0,2.1658]
[1610398469159,4.1677,1011.0,1010.0,2.1658]
[1610398469560,2.1894,1011.0,1010.0,2.1658]
[1610398469761,4.00959,1010.2,1010.0,2.1658]
[1610398470360,4.00959,1010.2,1009.7,1.5757]
[1610398470762,4.00959,1010.2,1009.6,1.9852]
[1610398470962,4.00959,1010.2,1009.4,1.993]
[1610398471763,4.00959,1009.5,1009.0,6.08019]
[1610398472164,4.00959,1009.5,1009.0,2.0706]
[1610398472364,4.00959,1009.5,1008.5,0.24452454]
[1610398472564,4.00959,1009.5,1008.4,0.24465917]
[1610398472964,4.00959,1009.5,1008.2,0.24452586]
[1610398473164,6.00709,1009.5,1008.2,0.24452586]
[1610398473664,8.41359,1009.5,1008.2,0.24452586]
[1610398473865,4.00959,1008.7,1008.4,4.00959]
[1610398475266,4.00959,1008.7,1008.1,0.24440102]
[1610398475666,4.00959,1008.7,1008.0,0.24488689]
[1610398475870,4.00959,1008.1,1008.0,0.24488689]
[1610398476067,4.00959,1008.1,1008.0,1.9797]
[1610398476269,6.31569,1008.1,1008.0,1.9797]
[1610398476474,6.31569,1008.1,1008.0,1.5529]
[1610398476668,6.31569,1008.1,1007.6,1.9708]
[1610398476868,81.1027,1007.8,1007.6,1.9708]
[1610398477068,83.3606,1007.8,1007.6,1.9708]
[1610398477668,83.3606,1007.8,1006.2,0.24821051]
[1610398477869,4.00959,1006.9,1006.2,0.24821051]
[1610398478067,5.91709,1006.9,1006.2,0.24821051]
[1610398478268,5.91709,1006.9,1006.1,0.24904637]
[1610398478469,15.21019,1006.9,1005.9,0.24944048]
[1610398478870,15.21019,1006.9,1005.9,1.9991]
[1610398479472,3.9057,1006.9,1005.9,1.9991]
[1610398479671,1.7361,1006.9,1005.9,1.9991]
[1610398479871,0.301,1006.9,1006.8,4.00959]
[1610398480073,0.0546,1006.9,1006.8,6.01519]
[1610398480271,0.9677,1007.3,1006.8,4.00959]
[1610398480472,78.2943,1007.4,1006.8,2.4364]
[1610398480672,64.0219,1007.3,1006.8,2.4364]
[1610398481473,64.0219,1007.3,1006.0,1.9118]
[1610398481873,4.00959,1006.5,1006.0,1.9118]
[1610398482072,69.14809,1006.5,1006.0,1.9118]
[1610398482271,69.14809,1006.5,1005.4,0.25133128]
[1610398483774,65.1385,1006.5,1005.3,0.2502442]
[1610398484177,65.1385,1006.5,1005.4,0.25010252]
[1610398484374,65.1385,1006.5,1005.4,1.96610252]
[1610398484775,65.1385,1006.5,1005.4,1.716]
[1610398485878,4.00959,1006.3,1005.7,4.00959]
[1610398486076,0.82309,1006.3,1005.7,5.99799]
[1610398486777,9e-05,1006.3,1005.7,5.99799]
[1610398487583,1.9827,1006.7,1005.7,5.99799]
[1610398487781,2.0508,1007.3,1005.7,7.57189]
[1610398487980,1.9561,1007.3,1006.6,4.00959]
[1610398488177,2.2579,1007.8,1006.6,89.01219]
[1610398488381,1.8929,1007.8,1006.6,89.01219]
[1610398488577,2.3061,1008.1,1006.6,89.01219]
[1610398488780,2.009,1008.1,1006.6,89.01219]
[1610398488982,6.115,1009.0,1006.6,89.01219]
[1610398489385,6.115,1009.0,1006.6,89.26018755]
[1610398489779,6.115,1009.0,1006.6,89.01219]
[1610398489977,4.00959,1007.8,1006.6,85.0026]
[1610398490779,4.00959,1007.8,1006.6,3.9108]
[1610398491379,6.01029,1007.8,1006.3,1.5069]
[1610398491580,6.01029,1007.8,1005.9,58.2803]
[1610398491983,2.0007,1007.8,1006.4,4.00959]
[1610398492582,2.0007,1007.8,1006.0,2.2383]
[1610398493382,2.0007,1007.8,1005.9,58.2803]
[1610398493983,2.0007,1007.8,1006.6,4.00959]
[1610398494887,2.0007,1007.8,1006.6,6.18589]
[1610398495085,2.1881,1008.0,1006.6,6.18589]
[1610398495885,4.00959,1007.1,1006.6,2.1763]
[1610398496284,1.6031,1007.5,1006.6,2.1763]
[1610398497188,1.6031,1007.5,1006.6,4.1901]
[1610398497889,1.6031,1007.5,1007.4,4.00959]
[1610398498890,1.6031,1007.5,1006.6,4.1901]
[1610398499290,1.6031,1007.5,1006.6,2.0138]
[1610398499891,4.00959,1006.7,1006.6,2.0138]
[1610398500090,5.76719,1006.7,1006.6,2.0138]
[1610398500291,5.76719,1006.7,1006.0,4.00959]
[1610398500492,5.76719,1006.7,1005.8,59.6659]
[1610398500693,5.76719,1006.7,1005.1,2.25185206]
[1610398500894,5.76719,1006.7,1005.2,71.6522]
[1610398501894,4.00959,1006.4,1006.2,4.00959]
[1610398502095,6.45759,1006.4,1006.2,4.00959]
[1610398502296,6.45759,1006.4,1005.6,1.9748]
[1610398502495,6.45759,1006.4,1005.2,71.6522]
[1610398502995,8.42759,1006.4,1005.2,71.6522]
[1610398503599,6.45759,1006.4,1005.2,71.6522]
[1610398504000,2.448,1006.4,1005.6,4.00959]
[1610398504197,2.448,1006.4,1005.6,5.99699]
[1610398504397,2.448,1006.4,1005.6,4.00959]
[1610398504602,4.4227,1006.4,1005.6,4.00959]
[1610398505203,4.4227,1006.4,1005.1,4.3779565]
[1610398505403,4.4227,1006.4,1005.1,4.1269]
[1610398505604,72.9236,1006.0,1005.1,2.002]
[1610398505805,74.8344,1006.0,1005.1,2.002]
[1610398506006,4.00959,1005.3,1005.1,2.002]
[1610398506605,5.90199,1005.3,1005.1,2.002]
[1610398506805,69.36049,1005.3,1005.1,2.002]
[1610398507006,69.36049,1005.3,1004.7,2.006]
[1610398507907,65.3509,1005.3,1004.9,4.00959]
[1610398508308,65.3509,1005.3,1004.1,2.2502]
[1610398509310,65.3509,1005.3,1003.5,0.25607534]
[1610398509511,1.8924,1005.3,1003.2,0.25671936]
[1610398509710,60.2963,1004.7,1003.2,0.25671936]
[1610398509910,4.00959,1003.9,1003.8,4.00959]
[1610398510311,1.5958,1004.7,1003.8,4.00959]
[1610398510511,1.8924,1005.3,1003.8,6.37889]
[1610398510914,1.8924,1005.3,1003.9,77.4819]
[1610398511113,2.0437,1005.6,1003.9,79.4792]
[1610398511114,7.9649542,1005.4,1003.9,79.4792]
[1610398511514,2.0437,1005.6,1003.9,79.4792]
[1610398511714,80.2284,1006.5,1003.9,79.4792]
[1610398511913,74.0219,1006.5,1003.9,79.4792]
[1610398512113,2.0035,1008.1,1003.9,1.9973]